fUSD/lending_fUSD_20250504
["ID","MTS","AMOUNT","RATE_DAILY","PERIOD"]
[359810945,1746358050485,-450.0,0.00019726,2]
[359810946,1746358050495,-450.0,0.00019726,2]
[359810947,1746358050504,-450.0,0.00019726,2]
[359810948,1746358050514,-485.57,0.00019726,2]
[359810949,1746358050524,-467.42882723,0.00019726,2]
[359810950,1746358050533,-507.81,0.00019726,2]
[359810951,1746358050542,-450.0,0.00019726,2]
[359810952,1746358050552,-450.0,0.00019726,2]
[359810953,1746358050562,-450.0,0.00019726,2]
[359810954,1746358050571,-450.0,0.00019726,2]
[359810955,1746358050581,-450.0,0.00019726,2]
[359810956,1746358050590,-450.0,0.00019726,2]
[359810957,1746358050599,-450.0,0.00019726,2]
[359810958,1746358050608,-450.0,0.00019726,2]
[359810959,1746358050618,-450.0,0.00019726,2]
[359810960,1746358050628,-450.0,0.00019726,2]
[359810961,1746358050638,-450.0,0.00019726,2]
[359810962,1746358050647,-450.0,0.00019726,2]
[359810963,1746358050655,-450.0,0.00019726,2]
[359810964,1746358050665,-212.01321955,0.00019726,2]
[359810965,1746358050674,-450.0,0.00019726,2]
[359810966,1746358050683,-450.0,0.00019726,2]
[359810967,1746358050693,-450.0,0.00019726,2]
[359810968,1746358050702,-450.0,0.00019726,2]
[359810969,1746358050711,-535.71,0.00019726,2]
[359810970,1746358050721,-450.0,0.00019726,2]
[359810971,1746358050730,-450.0,0.00019726,2]
[359810972,1746358050739,-864.65,0.00019726,2]
[359810973,1746358050749,-450.0,0.00019726,2]
[359810974,1746358050758,-450.0,0.00019726,2]
[359810975,1746358050767,-450.0,0.00019726,2]
[359810976,1746358050776,-313.4401309,0.00019726,2]
[359810977,1746358050786,-450.0,0.00019726,2]
[359810978,1746358050795,-450.0,0.00019726,2]
[359810979,1746358050805,-450.0,0.00019726,2]
[359810980,1746358050814,-577.55,0.00019726,2]
[359810981,1746358050823,-473.48,0.00019726,2]
[359810982,1746358050832,-163.80338983,0.00019726,2]
[359810983,1746358050846,-286.19661017,0.00019726,2]
[359810984,1746358050855,-450.0,0.00019726,2]
[359810985,1746358050865,-450.0,0.00019726,2]
[359810986,1746358050874,-450.0,0.00019726,2]
[359810987,1746358050887,-359.22238983,0.00019726,2]
[359810988,1746358050898,-90.77761017,0.00019726,2]
[359810989,1746358050908,-450.0,0.00019726,2]
[359810990,1746358050919,-450.0,0.00019726,2]
[359810991,1746358050928,-450.0,0.00019726,2]
[359810992,1746358050938,-302.59775766,0.00019726,2]
[359810993,1746358050949,-266.68224234,0.00019726,2]
[359810994,1746358050959,-450.0,0.00019726,2]
[359810995,1746358050970,-450.0,0.00019726,2]
[359810996,1746358050979,-450.0,0.00019726,2]
[359810997,1746358050989,-450.0,0.00019726,2]
[359810998,1746358050999,-450.0,0.00019726,2]
[359810999,1746358051008,-320.15476228,0.00019726,2]
[359811000,1746358051020,-129.84523772,0.00019726,2]
[359811001,1746358051029,-27.33364031,0.00019726,2]
[359811002,1746358051041,-207.4,0.00019726,2]
[359811003,1746358051053,-215.26635969,0.00019726,2]
[359811004,1746358051063,-450.0,0.00019726,2]
[359811005,1746358051072,-450.0,0.00019726,2]
[359811006,1746358051081,-450.0,0.00019726,2]
[359811007,1746358051092,-178.10900814,0.00019726,2]
[359811008,1746358051103,-432.65099186,0.00019726,2]
[359811010,1746358051113,-450.0,0.00019726,2]
[359811011,1746358051122,-450.0,0.00019726,2]
[359811012,1746358051131,-450.0,0.00019726,2]
[359811013,1746358051140,-450.0,0.00019726,2]
[359811014,1746358051149,-480.43,0.00019726,2]
[359811015,1746358051158,-123.75601276,0.00019726,2]
[359811016,1746358051175,-150.99,0.00019726,2]
[359811017,1746358051185,-175.25398724,0.00019726,2]
[359811018,1746358051194,-450.0,0.00019726,2]
[359811019,1746358051204,-450.0,0.00019726,2]
[359811020,1746358051213,-450.0,0.00019726,2]
[359811021,1746358051223,-450.0,0.00019726,2]
[359811022,1746358051231,-450.0,0.00019726,2]
[359811023,1746358051240,-562.83,0.00019726,2]
[359811024,1746358051249,-450.0,0.00019726,2]
[359811025,1746358051259,-450.0,0.00019726,2]
[359811026,1746358051268,-450.0,0.00019726,2]
[359811027,1746358051328,-450.0,0.00019726,2]
[359811028,1746358051337,-450.0,0.00019726,2]
[359811029,1746358051346,-520.6,0.00019726,2]
[359811030,1746358051355,-503.44,0.00019726,2]
[359811031,1746358051364,-450.0,0.00019726,2]
[359811032,1746358051373,-450.0,0.00019726,2]
[359811033,1746358051383,-477.24,0.00019726,2]
[359811034,1746358051392,-596.27,0.00019726,2]
[359811035,1746358051401,-450.0,0.00019726,2]
[359811036,1746358051410,-450.0,0.00019726,2]
[359811037,1746358051420,-450.0,0.00019726,2]
[359811038,1746358051429,-414.35601276,0.00019726,2]
[359811039,1746358051440,-35.64398724,0.00019726,2]
[359811040,1746358051449,-450.0,0.00019726,2]
[359811041,1746358051459,-450.0,0.00019726,2]
[359811042,1746358051468,-450.0,0.00019726,2]
[359811043,1746358051477,-450.0,0.00019726,2]
[359811044,1746358051486,-450.0,0.00019726,2]
[359811045,1746358051496,-450.0,0.00019726,2]
[359811046,1746358051505,-450.0,0.00019726,2]
[359811047,1746358051514,-450.0,0.00019726,2]
[359811048,1746358051523,-450.0,0.00019726,2]
[359811049,1746358051532,-537.07,0.00019726,2]
[359811050,1746358051542,-450.0,0.00019726,2]
[359811051,1746358051551,-450.0,0.00019726,2]
[359811052,1746358051560,-450.0,0.00019726,2]
[359811053,1746358051569,-450.0,0.00019726,2]
[359811054,1746358051578,-450.0,0.00019726,2]
[359811055,1746358051586,-450.0,0.00019726,2]
[359811056,1746358051596,-450.0,0.00019726,2]
[359811057,1746358051605,-450.0,0.00019726,2]
[359811058,1746358051614,-450.0,0.00019726,2]
[359811059,1746358051623,-261.56509674,0.00019726,2]
[359811060,1746358051632,-450.0,0.00019726,2]
[359811061,1746358051641,-450.0,0.00019726,2]
[359811062,1746358051650,-165.71091602,0.00019726,2]
[359811063,1746358051663,-284.28908398,0.00019726,2]
[359811064,1746358051671,-450.0,0.00019726,2]
[359811065,1746358051681,-265.70091602,0.00019726,2]
[359811066,1746358051692,-184.29908398,0.00019726,2]
[359811067,1746358051701,-450.0,0.00019726,2]
[359811068,1746358051710,-450.0,0.00019726,2]
[359811069,1746358051719,-509.11,0.00019726,2]
[359811070,1746358051729,-450.0,0.00019726,2]
[359811071,1746358051738,-450.0,0.00019726,2]
[359811072,1746358051747,-727.75,0.00019726,2]
[359811073,1746358051757,-450.0,0.00019726,2]
[359811074,1746358051766,-450.0,0.00019726,2]
[359811075,1746358051776,-450.0,0.00019726,2]
[359811076,1746358051786,-450.0,0.00019726,2]
[359811077,1746358051795,-450.0,0.00019726,2]
[359811078,1746358051804,-450.0,0.00019726,2]
[359811079,1746358051813,-450.0,0.00019726,2]
[359811080,1746358051822,-78.85091602,0.00019726,2]
[359811081,1746358051839,-371.14908398,0.00019726,2]
[359811082,1746358051848,-450.0,0.00019726,2]
[359811083,1746358051858,-326.87091602,0.00019726,2]
[359811084,1746358051870,-123.12908398,0.00019726,2]
[359811085,1746358051884,-450.0,0.00019726,2]
[359811086,1746358051894,-199.414935,0.00019726,2]
[359811087,1746358051903,-450.0,0.00019726,2]
[359811088,1746358051913,-450.0,0.00019726,2]
[359811089,1746358051923,-450.0,0.00019726,2]
[359811090,1746358051932,-450.0,0.00019726,2]
[359811091,1746358051942,-242.66153218,0.00019726,2]
[359811092,1746358051952,-450.0,0.00019726,2]
[359811093,1746358051961,-450.0,0.00019726,2]
[359811094,1746358051971,-450.0,0.00019726,2]
[359811095,1746358051980,-450.0,0.00019726,2]
[359811096,1746358051989,-361.14482523,0.00019726,2]
[359811097,1746358051998,-450.0,0.00019726,2]
[359811098,1746358052008,-450.0,0.00019726,2]
[359811099,1746358052017,-507.56,0.00019726,2]
[359811100,1746358052026,-452.94,0.00019726,2]
[359811101,1746358052036,-450.0,0.00019726,2]
[359811102,1746358052045,-450.0,0.00019726,2]
[359811103,1746358052055,-450.0,0.00019726,2]
[359811104,1746358052064,-450.0,0.00019726,2]
[359811105,1746358052073,-450.0,0.00019726,2]
[359811106,1746358052082,-450.0,0.00019726,2]
[359811107,1746358052091,-454.77962361,0.00019726,2]
[359811108,1746358052139,-1808.55037639,0.00019726,2]
[359811109,1746358052166,-466.52086807,0.00019726,2]
[359811110,1746358052196,-450.0,0.00019726,2]
[359811111,1746358052222,-399.75363239,0.00019726,2]
[359811112,1746358052250,-450.0,0.00019726,2]
[359811113,1746358052276,-450.0,0.00019726,2]
[359811114,1746358052302,-450.0,0.00019726,2]
[359811116,1746358052328,-450.0,0.00019726,2]
[359811117,1746358052354,-450.0,0.00019726,2]
[359811118,1746358052380,-450.0,0.00019726,2]
[359811119,1746358052407,-450.0,0.00019726,2]
[359811120,1746358052434,-1348.23,0.00019726,2]
[359811121,1746358052460,-450.0,0.00019726,2]
[359811122,1746358052487,-450.0,0.00019726,2]
[359811123,1746358052514,-494.39,0.00019726,2]
[359811124,1746358052543,-450.0,0.00019726,2]
[359811125,1746358052569,-450.0,0.00019726,2]
[359811126,1746358052596,-450.0,0.00019726,2]
[359811127,1746358052621,-644.29,0.00019726,2]
[359811128,1746358052646,-450.0,0.00019726,2]
[359811129,1746358052672,-450.0,0.00019726,2]
[359811130,1746358052697,-450.0,0.00019726,2]
[359811131,1746358052722,-450.0,0.00019726,2]
[359811132,1746358052748,-450.0,0.00019726,2]
[359811133,1746358052773,-450.0,0.00019726,2]
[359811134,1746358052799,-678.34,0.00019726,2]
[359811135,1746358052825,-450.0,0.00019726,2]
[359811136,1746358052851,-450.0,0.00019726,2]
[359811137,1746358052880,-450.0,0.00019726,2]
[359811138,1746358052907,-500.0,0.00019726,2]
[359811139,1746358052933,-497.8,0.00019726,2]
[359811140,1746358052960,-450.0,0.00019726,2]
[359811141,1746358052986,-450.0,0.00019726,2]
[359811142,1746358053014,-1310.44,0.00019726,2]
[359811143,1746358053043,-450.0,0.00019726,2]
[359811144,1746358053072,-450.0,0.00019726,2]
[359811145,1746358053101,-509.4,0.00019726,2]
[359811146,1746358053131,-494.34,0.00019726,2]
[359811147,1746358053159,-450.0,0.00019726,2]
[359811148,1746358053188,-450.0,0.00019726,2]
[359811149,1746358053215,-450.0,0.00019726,2]
[359811150,1746358053242,-450.0,0.00019726,2]
[359811151,1746358053270,-450.0,0.00019726,2]
[359811152,1746358053296,-2381.14,0.00019726,2]
[359811153,1746358053322,-450.0,0.00019726,2]
[359811154,1746358053347,-450.0,0.00019726,2]
[359811155,1746358053374,-450.0,0.00019726,2]
[359811156,1746358053401,-450.0,0.00019726,2]
[359811157,1746358053431,-716.18,0.00019726,2]
[359811158,1746358053462,-450.0,0.00019726,2]
[359811159,1746358053494,-753.11,0.00019726,2]
[359811160,1746358053528,-450.0,0.00019726,2]
[359811161,1746358053559,-450.0,0.00019726,2]
[359811162,1746358053591,-973.65,0.00019726,2]
[359811163,1746358053621,-450.0,0.00019726,2]
[359811164,1746358053650,-450.0,0.00019726,2]
[359811165,1746358053680,-450.0,0.00019726,2]
[359811166,1746358053710,-2480.86,0.00019726,2]
[359811167,1746358053739,-450.0,0.00019726,2]
[359811168,1746358053770,-515.56,0.00019726,2]
[359811169,1746358053799,-450.0,0.00019726,2]
[359811170,1746358053830,-450.0,0.00019726,2]
[359811171,1746358053860,-450.0,0.00019726,2]
[359811172,1746358053892,-474.16,0.00019726,2]
[359811173,1746358053921,-450.0,0.00019726,2]
[359811174,1746358053951,-450.0,0.00019726,2]
[359811175,1746358053981,-1808.76,0.00019726,2]
[359811176,1746358054015,-450.0,0.00019726,2]
[359811177,1746358054045,-577.56,0.00019726,2]
[359811178,1746358054075,-450.0,0.00019726,2]
[359811179,1746358054106,-450.0,0.00019726,2]
[359811180,1746358054135,-450.0,0.00019726,2]
[359811181,1746358054164,-450.0,0.00019726,2]
[359811182,1746358054194,-450.0,0.00019726,2]
[359811183,1746358054224,-450.0,0.00019726,2]
[359811184,1746358054254,-780.73,0.00019726,2]
[359811185,1746358054282,-450.0,0.00019726,2]
[359811186,1746358054312,-568.2,0.00019726,2]
[359811187,1746358054340,-450.0,0.00019726,2]
[359811188,1746358054366,-450.0,0.00019726,2]
[359811189,1746358054393,-450.0,0.00019726,2]
[359811190,1746358054421,-450.0,0.00019726,2]
[359811191,1746358054449,-450.0,0.00019726,2]
[359811192,1746358054476,-450.0,0.00019726,2]
[359811193,1746358054503,-582.84,0.00019726,2]
[359811194,1746358054530,-450.0,0.00019726,2]
[359811195,1746358054556,-450.0,0.00019726,2]
[359811196,1746358054582,-450.0,0.00019726,2]
[359811197,1746358054610,-450.0,0.00019726,2]
[359811198,1746358054636,-536.9,0.00019726,2]
[359811199,1746358054661,-450.0,0.00019726,2]
[359811200,1746358054689,-450.0,0.00019726,2]
[359811201,1746358054715,-450.0,0.00019726,2]
[359811202,1746358054742,-925.66,0.00019726,2]
[359811203,1746358054770,-450.0,0.00019726,2]
[359811204,1746358054797,-450.0,0.00019726,2]
[359811205,1746358054824,-450.0,0.00019726,2]
[359811206,1746358054853,-450.0,0.00019726,2]
[359811207,1746358054883,-2020.71,0.00019726,2]
[359811208,1746358054910,-450.0,0.00019726,2]
[359811209,1746358054938,-450.0,0.00019726,2]
[359811210,1746358054970,-450.0,0.00019726,2]
[359811211,1746358054996,-206.23173074,0.00019726,2]
[359811212,1746358055024,-450.0,0.00019726,2]
[359811213,1746358055051,-450.0,0.00019726,2]
[359811214,1746358055078,-533.4,0.00019726,2]
[359811215,1746358055106,-500.0,0.00019726,2]
[359811216,1746358055132,-41854.94,0.00019726,2]
[359811217,1746358055159,-450.0,0.00019726,2]
[359811218,1746358055185,-450.0,0.00019726,2]
[359811219,1746358055211,-200.5831331,0.00019726,2]
[359811220,1746358055237,-783.92,0.00019726,2]
[359811221,1746358055264,-450.0,0.00019726,2]
[359811222,1746358055291,-255.06185586,0.00019726,2]
[359811223,1746358055317,-450.0,0.00019726,2]
[359811224,1746358055345,-284.02682808,0.00019726,2]
[359811225,1746358055372,-450.0,0.00019726,2]
[359811226,1746358055399,-450.0,0.00019726,2]
[359811227,1746358055426,-450.0,0.00019726,2]
[359811228,1746358055453,-3577.13,0.00019726,2]
[359811229,1746358055480,-529.23813781,0.00019726,2]
[359811230,1746358055508,-511.97250402,0.00019726,2]
[359811231,1746358055535,-450.0,0.00019726,2]
[359811232,1746358055563,-500.0,0.00019726,2]
[359811233,1746358055589,-450.0,0.00019726,2]
[359811234,1746358055617,-530.28,0.00019726,2]
[359811235,1746358055645,-647.11,0.00019726,2]
[359811236,1746358055673,-450.0,0.00019726,2]
[359811237,1746358055700,-450.0,0.00019726,2]
[359811238,1746358055728,-450.0,0.00019726,2]
[359811239,1746358055756,-150.0,0.00019726,2]
[359811240,1746358055783,-450.0,0.00019726,2]
[359811241,1746358055812,-450.0,0.00019726,2]
[359811242,1746358055839,-450.0,0.00019726,2]
[359811243,1746358055867,-450.0,0.00019726,2]
[359811244,1746358055899,-450.0,0.00019726,2]
[359811245,1746358055926,-450.0,0.00019726,2]
[359811246,1746358055954,-450.0,0.00019726,2]
[359811247,1746358055982,-450.0,0.00019726,2]
[359811248,1746358056009,-2136.4,0.00019726,2]
[359811249,1746358056036,-450.0,0.00019726,2]
[359811250,1746358056063,-450.0,0.00019726,2]
[359811251,1746358056092,-450.0,0.00019726,2]
[359811252,1746358056119,-450.0,0.00019726,2]
[359811253,1746358056147,-450.0,0.00019726,2]
[359811254,1746358056174,-450.0,0.00019726,2]
[359811255,1746358056202,-10062.95,0.00019726,2]
[359811256,1746358056229,-450.0,0.00019726,2]
[359811257,1746358056256,-450.0,0.00019726,2]
[359811258,1746358056282,-450.0,0.00019726,2]
[359811259,1746358056309,-450.0,0.00019726,2]
[359811260,1746358056335,-450.0,0.00019726,2]
[359811261,1746358056363,-450.0,0.00019726,2]
[359811262,1746358056390,-230.21,0.00019726,2]
[359811263,1746358056417,-549.92,0.00019726,2]
[359811264,1746358056444,-450.0,0.00019726,2]
[359811265,1746358056471,-450.0,0.00019726,2]
[359811266,1746358056498,-450.0,0.00019726,2]
[359811267,1746358056526,-450.0,0.00019726,2]
[359811268,1746358056552,-674.36,0.00019726,2]
[359811269,1746358056580,-450.0,0.00019726,2]
[359811270,1746358056608,-450.0,0.00019726,2]
[359811271,1746358056634,-450.0,0.00019726,2]
[359811272,1746358056662,-450.0,0.00019726,2]
[359811273,1746358056688,-450.0,0.00019726,2]
[359811274,1746358056716,-450.0,0.00019726,2]
[359811275,1746358056743,-450.0,0.00019726,2]
[359811276,1746358056772,-450.0,0.00019726,2]
[359811277,1746358056801,-450.0,0.00019726,2]
[359811278,1746358056831,-6082.93,0.00019726,2]
[359811279,1746358057084,-500.78,0.00019726,2]
[359811280,1746358057112,-333.94,0.00019726,2]
[359811281,1746358057140,-450.0,0.00019726,2]
[359811282,1746358057166,-450.0,0.00019726,2]
[359811283,1746358057192,-450.0,0.00019726,2]
[359811284,1746358057218,-500.0,0.00019726,2]
[359811285,1746358057244,-450.0,0.00019726,2]
[359811286,1746358057275,-450.0,0.00019726,2]
[359811287,1746358057306,-1221.49,0.00019726,2]
[359811288,1746358057332,-16.17186708,0.00019726,2]
[359811289,1746358057755,-433.82813292,0.00019726,2]
[359811290,1746358057783,-230.08,0.00019726,2]
[359811291,1746358057812,-450.0,0.00019726,2]
[359811292,1746358057839,-150.0,0.00019726,2]
[359811293,1746358057866,-450.0,0.00019726,2]
[359811294,1746358057897,-450.0,0.00019726,2]
[359811295,1746358057927,-3220.12,0.00019726,2]
[359811296,1746358057954,-225.55557963,0.00019726,2]
[359811297,1746358057983,-450.0,0.00019726,2]
[359811298,1746358058012,-450.0,0.00019726,2]
[359811299,1746358058040,-731.21,0.00019726,2]
[359811300,1746358058067,-450.0,0.00019726,2]
[359811301,1746358058094,-450.0,0.00019726,2]
[359811302,1746358058121,-450.0,0.00019726,2]
[359811303,1746358058147,-450.0,0.00019726,2]
[359811304,1746358058175,-450.0,0.00019726,2]
[359811305,1746358058201,-450.0,0.00019726,2]
[359811306,1746358058227,-450.0,0.00019726,2]
[359811307,1746358058252,-450.0,0.00019726,2]
[359811308,1746358058279,-450.0,0.00019726,2]
[359811309,1746358058305,-450.0,0.00019726,2]
[359811310,1746358058331,-450.0,0.00019726,2]
[359811311,1746358058358,-450.0,0.00019726,2]
[359811312,1746358058384,-450.0,0.00019726,2]
[359811313,1746358058409,-450.0,0.00019726,2]
[359811314,1746358058435,-497.95,0.00019726,2]
[359811315,1746358058462,-450.0,0.00019726,2]
[359811316,1746358058487,-450.0,0.00019726,2]
[359811317,1746358058514,-450.0,0.00019726,2]
[359811318,1746358058540,-450.0,0.00019726,2]
[359811319,1746358058566,-450.0,0.00019726,2]
[359811320,1746358058593,-450.0,0.00019726,2]
[359811321,1746358058619,-489.56,0.00019726,2]
[359811322,1746358058645,-450.0,0.00019726,2]
[359811323,1746358058672,-62011.91,0.00019726,2]
[359811324,1746358058698,-450.0,0.00019726,2]
[359811325,1746358058725,-2440.62,0.00019726,2]
[359811326,1746358058751,-450.0,0.00019726,2]
[359811327,1746358058776,-450.0,0.00019726,2]
[359811328,1746358058801,-450.0,0.00019726,2]
[359811329,1746358058829,-450.0,0.00019726,2]
[359811330,1746358058857,-450.0,0.00019726,2]
[359811331,1746358058886,-450.0,0.00019726,2]
[359811332,1746358058914,-450.0,0.00019726,2]
[359811333,1746358058943,-450.0,0.00019726,2]
[359811334,1746358058972,-450.0,0.00019726,2]
[359811335,1746358058999,-500.35,0.00019726,2]
[359811336,1746358059026,-450.0,0.00019726,2]
[359811337,1746358059052,-450.0,0.00019726,2]
[359811338,1746358059079,-450.0,0.00019726,2]
[359811339,1746358059146,-450.0,0.00019726,2]
[359811340,1746358059173,-547.22,0.00019726,2]
[359811341,1746358059200,-1114.96,0.00019726,2]
[359811342,1746358059226,-450.0,0.00019726,2]
[359811343,1746358059253,-844.79,0.00019726,2]
[359811344,1746358059278,-450.0,0.00019726,2]
[359811345,1746358059304,-450.0,0.00019726,2]
[359811346,1746358059330,-450.0,0.00019726,2]
[359811347,1746358059356,-300.0,0.00019726,2]
[359811348,1746358059382,-450.0,0.00019726,2]
[359811349,1746358059409,-548.61,0.00019726,2]
[359811350,1746358059436,-450.0,0.00019726,2]
[359811351,1746358059462,-450.0,0.00019726,2]
[359811352,1746358059488,-450.0,0.00019726,2]
[359811353,1746358059514,-450.0,0.00019726,2]
[359811354,1746358059540,-195.51373722,0.00019726,2]
[359811355,1746358059566,-450.0,0.00019726,2]
[359811356,1746358059592,-450.0,0.00019726,2]
[359811357,1746358059619,-450.0,0.00019726,2]
[359811358,1746358059645,-466.07,0.00019726,2]
[359811359,1746358059671,-450.0,0.00019726,2]
[359811360,1746358059698,-450.0,0.00019726,2]
[359811361,1746358059728,-450.0,0.00019726,2]
[359811362,1746358059754,-618.61,0.00019726,2]
[359811363,1746358059782,-450.0,0.00019726,2]
[359811364,1746358059810,-450.0,0.00019726,2]
[359811365,1746358059839,-450.0,0.00019726,2]
[359811366,1746358059865,-450.0,0.00019726,2]
[359811367,1746358059894,-157.17887803,0.00019729,2]
[359811368,1746358059924,-1743.37536783,0.00019748,2]
[359811369,1746358059953,-2836.83700462,0.00019748,2]
[359811370,1746358059982,-500.0,0.00019752,2]
[359811371,1746358060008,-628.01546955,0.00019752,2]
[359811372,1746358060035,-450.0,0.00019753,2]
[359811373,1746358060061,-859.36,0.00019753,2]
[359811374,1746358060087,-450.0,0.00019753,2]
[359811375,1746358060113,-380.44373895,0.00019753,2]
[359811376,1746358060139,-450.0,0.00019753,2]
[359811377,1746358060166,-450.0,0.00019753,2]
[359811378,1746358060192,-450.0,0.00019753,2]
[359811379,1746358060218,-411.79226179,0.00019753,2]
[359811380,1746358060247,-450.0,0.00019753,2]
[359811381,1746358060275,-450.0,0.00019753,2]
[359811382,1746358060302,-180.97,0.00019753,2]
[359811383,1746358060328,-194.87,0.00019753,2]
[359811384,1746358060354,-395.05,0.00019753,2]
[359811385,1746358060380,-450.0,0.00019753,2]
[359811386,1746358060408,-450.0,0.00019753,2]
[359811387,1746358060434,-196.04,0.00019753,2]
[359811388,1746358060461,-218.82229932,0.00019753,2]
[359811389,1746358060488,-450.0,0.00019753,2]
[359811390,1746358060516,-450.0,0.00019753,2]
[359811391,1746358060544,-394.53,0.00019753,2]
[359811392,1746358060571,-450.0,0.00019753,2]
[359811393,1746358060598,-450.0,0.00019753,2]
[359811394,1746358060625,-450.0,0.00019753,2]
[359811395,1746358060651,-450.0,0.00019753,2]
[359811396,1746358060677,-450.0,0.00019753,2]
[359811397,1746358060704,-472.93,0.00019753,2]
[359811398,1746358060731,-450.0,0.00019753,2]
[359811399,1746358060757,-450.0,0.00019753,2]
[359811400,1746358060785,-219.64,0.00019753,2]
[359811401,1746358060812,-450.0,0.00019753,2]
[359811402,1746358060840,-584.66,0.00019753,2]
[359811403,1746358060866,-450.0,0.00019753,2]
[359811404,1746358060894,-450.0,0.00019753,2]
[359811405,1746358060921,-450.0,0.00019753,2]
[359811406,1746358060947,-450.0,0.00019753,2]
[359811407,1746358060976,-450.0,0.00019753,2]
[359811408,1746358061003,-450.0,0.00019753,2]
[359811409,1746358061030,-450.0,0.00019753,2]
[359811410,1746358061057,-450.0,0.00019753,2]
[359811411,1746358061084,-450.0,0.00019753,2]
[359811412,1746358061112,-450.0,0.00019753,2]
[359811413,1746358061138,-220.63,0.00019753,2]
[359811414,1746358061164,-206.98,0.00019753,2]
[359811415,1746358061189,-450.0,0.00019753,2]
[359811416,1746358061217,-283.1,0.00019753,2]
[359811417,1746358061245,-450.0,0.00019753,2]
[359811418,1746358061271,-450.0,0.00019753,2]
[359811419,1746358061298,-450.0,0.00019753,2]
[359811420,1746358061324,-864.65,0.00019753,2]
[359811421,1746358061351,-174.44,0.00019753,2]
[359811422,1746358061377,-450.0,0.00019753,2]
[359811423,1746358061405,-450.0,0.00019753,2]
[359811424,1746358061432,-153.45,0.00019753,2]
[359811425,1746358061459,-450.0,0.00019753,2]
[359811426,1746358061487,-205.41,0.00019753,2]
[359811427,1746358061515,-450.0,0.00019753,2]
[359811428,1746358061542,-196.90448889,0.00019753,2]
[359811429,1746358061570,-171.57,0.00019753,2]
[359811430,1746358061597,-450.0,0.00019753,2]
[359811431,1746358061624,-610.76,0.00019753,2]
[359811432,1746358061651,-450.0,0.00019753,2]
[359811433,1746358061679,-450.0,0.00019753,2]
[359811434,1746358061706,-568.34,0.00019753,2]
[359811435,1746358061732,-209.89,0.00019753,2]
[359811436,1746358061759,-450.0,0.00019753,2]
[359811437,1746358061789,-222.14,0.00019753,2]
[359811438,1746358061817,-420.42183192,0.00019753,2]
[359811439,1746358061844,-232.07,0.00019753,2]
[359811440,1746358061872,-450.0,0.00019753,2]
[359811441,1746358061902,-450.0,0.00019753,2]
[359811442,1746358061931,-382.96,0.00019753,2]
[359811443,1746358061959,-404.53,0.00019753,2]
[359811444,1746358061986,-537.07,0.00019753,2]
[359811445,1746358062015,-166.9,0.00019753,2]
[359811446,1746358062045,-450.0,0.00019753,2]